bitfinex/quotes_ETHUSD_20250821
["timestamp","ask_amount","ask_price","bid_price","bid_amount"]
[1755819614565,0.4366,4223.5,4223.3,3.0]
[1755819614765,0.2927,4223.4,4223.3,3.0]
[1755819615294,0.7293,4223.4,4223.3,3.0]
[1755819615694,0.7293,4223.4,4222.6,0.004]
[1755819615895,0.02355063,4223.3,4222.6,2.37218846]
[1755819616101,4.051,4223.2,4222.6,3.71618]
[1755819616462,0.4366,4223.1,4222.6,3.71618]
[1755819616666,0.2927,4222.7,4222.6,0.004]
[1755819616895,4.3457,4222.7,4222.6,0.004]
[1755819617095,4.7823,4222.7,4222.6,0.004]
[1755819618791,4.3457,4222.7,4222.6,0.004]
[1755819619100,4.053,4222.7,4222.6,2.37220916]
[1755819620102,1.822,4222.9,4222.6,1.06955613]
[1755819620401,4.05,4222.8,4222.7,5.49105307]
[1755819620601,4.05,4223.0,4222.8,2.36804277]
[1755819620802,4.05,4223.0,4222.7,2.36814407]
[1755819621104,4.05,4223.0,4222.6,0.004]
[1755819621105,0.2927,4222.8,4222.6,0.004]
[1755819621305,4.052,4222.7,4222.6,0.004]
[1755819621504,4.7813,4222.7,4222.6,0.004]
[1755819622807,6.6033,4222.7,4222.6,0.004]
[1755819622970,2.5513,4222.7,4222.6,0.004]
[1755819623176,6.6063,4222.7,4222.6,0.004]
[1755819627603,7.26693,4222.7,4222.6,0.004]
[1755819631138,3.21193,4222.7,4222.6,0.004]
[1755819631439,7.26093,4222.7,4222.6,0.004]
[1755819631598,6.6003,4222.7,4222.6,0.004]
[1755819632302,5.871,4222.7,4222.6,0.004]
[1755819632642,6.1637,4222.7,4222.6,0.004]
[1755819632838,6.6003,4222.7,4222.6,0.004]
[1755819633048,2.5513,4222.7,4222.6,0.004]
[1755819633199,1.822,4222.7,4222.6,0.004]
[1755819633397,5.87,4222.7,4222.6,0.004]
[1755819633695,1.822,4222.7,4222.6,0.2006]
[1755819633901,5.869,4222.7,4222.6,0.2006]
[1755819634417,1.822,4222.7,4222.6,3.2006]
[1755819634621,1.822,4222.7,4222.6,3.75749729]
[1755819634813,5.869,4222.7,4222.6,3.75749729]
[1755819635207,5.869,4222.7,4222.6,6.12570645]
[1755819635613,1.822,4222.7,4222.6,6.24860645]
[1755819635816,0.001,4223.6,4222.9,2.36801759]
[1755819635817,1.822,4223.3,4222.9,2.36801759]
[1755819636131,1.822,4223.3,4223.2,0.1966]
[1755819636330,5.869,4223.3,4223.2,0.22027872]
[1755819636531,5.869,4223.3,4222.6,0.68379729]
[1755819636532,13.04303646,4223.3,4222.6,0.004]
[1755819636698,0.02355063,4223.2,4222.6,0.004]
[1755819636904,0.46015063,4223.2,4222.6,0.004]
[1755819637447,0.2927,4222.7,4222.6,0.004]
[1755819637598,4.36925063,4222.7,4222.6,0.004]
[1755819637805,4.81065063,4222.7,4222.6,0.004]
[1755819638025,4.7871,4222.7,4222.6,0.004]
[1755819642437,4.7851,4222.7,4222.6,0.004]
[1755819642919,5.26361,4222.7,4222.6,0.004]
[1755819645252,4.048,4222.7,4222.6,0.004]
[1755819645623,4.7963,4222.7,4222.6,0.004]
[1755819647961,4.7973,4222.7,4222.6,0.004]
[1755819653441,0.3069,4222.7,4222.6,0.004]
[1755819653677,5.695,4223.2,4222.6,0.2006]
[1755819653878,4.041,4223.1,4222.6,0.2006]
[1755819654080,4.06455063,4223.1,4222.6,0.2006]
[1755819654647,4.041,4223.1,4222.6,0.2006]
[1755819654951,0.02355063,4223.0,4222.6,0.2006]
[1755819655152,4.042,4222.9,4222.6,0.2006]
[1755819656068,0.02355063,4222.8,4222.6,0.2006]
[1755819656380,4.042,4222.7,4222.6,0.2006]
[1755819656549,0.02355063,4223.1,4222.6,0.2006]
[1755819656876,4.042,4223.0,4222.6,0.2006]
[1755819657057,4.06355063,4222.9,4222.6,0.2006]
[1755819657447,0.02355063,4222.9,4222.6,0.2006]
[1755819657757,4.04,4222.8,4222.6,0.2006]
[1755819659744,0.7483,4222.7,4222.6,0.004]
[1755819660380,0.77185063,4222.7,4222.6,0.004]
[1755819660544,0.7483,4222.7,4222.6,0.004]
[1755819660749,0.77185063,4222.7,4222.6,0.004]
[1755819660947,0.7483,4222.7,4222.6,0.004]
[1755819661381,1.29108063,4222.7,4222.6,0.004]
[1755819662504,4.037,4222.7,4222.6,0.2006]
[1755819662997,4.037,4222.7,4222.6,0.004]
[1755819663308,4.037,4222.7,4222.6,0.2006]
[1755819663601,4.3439,4222.7,4222.6,0.004]
[1755819663805,4.7853,4222.7,4222.6,0.004]
[1755819664661,4.037,4222.7,4222.6,0.004]
[1755819665310,4.3439,4222.7,4222.6,0.004]
[1755819665512,4.7853,4222.7,4222.6,0.004]
[1755819665676,4.037,4222.7,4222.6,0.004]
[1755819665872,4.06055063,4222.7,4222.6,0.2006]
[1755819666066,4.3439,4222.7,4222.6,0.004]
[1755819666300,5.21969,4222.7,4222.6,0.004]
[1755819666889,6.60073727,4222.7,4222.6,0.004]
[1755819670525,6.60058075,4222.7,4222.6,0.004]
[1755819671023,6.60052531,4222.7,4222.6,0.004]
[1755819671623,36.60052531,4222.7,4222.6,0.004]
[1755819673628,0.66,4222.6,4222.1,0.004]
[1755819673811,7.84288091,4222.2,4222.1,0.004]
[1755819674012,11.87988091,4222.2,4222.1,0.004]
[1755819674327,12.34768091,4222.2,4222.1,0.004]
[1755819676434,6.88228091,4222.2,4222.1,0.004]
[1755819676733,11.21988091,4222.2,4222.1,0.004]
[1755819676939,12.991869,4222.2,4222.1,0.004]
[1755819677623,13.651869,4222.2,4222.1,0.004]
[1755819679436,1.30418809,4222.2,4222.1,0.2006]
[1755819679637,4.037,4222.2,4222.1,0.2006]
[1755819680363,4.8054,4222.2,4222.1,0.004]
[1755819681859,5.4654,4222.2,4222.1,0.004]
[1755819690153,5.96728674,4222.2,4222.1,0.004]
[1755819695461,6.18526137,4222.2,4222.1,0.004]
[1755819695664,8.547401,4222.2,4222.1,0.004]
[1755819697984,7.779001,4222.2,4222.1,0.004]
[1755819698156,7.56102637,4222.2,4222.1,0.004]
[1755819698677,8.29812637,4222.2,4222.1,0.004]
[1755819699445,0.50188674,4222.2,4222.1,0.2006]
[1755819699642,0.50188674,4222.2,4222.1,0.3235]
[1755819699643,4.037,4222.2,4222.1,0.3235]
[1755819700376,4.037,4222.2,4222.1,0.2006]
[1755819700796,4.037,4222.2,4222.1,0.004]
[1755819700953,6.61792809,4222.2,4222.1,0.004]
[1755819701138,7.12032024,4222.2,4222.1,0.004]
[1755819701776,2.34622024,4222.2,4222.1,0.2006]
[1755819701979,4.53939215,4222.2,4222.1,0.2006]
[1755819702187,0.50239215,4222.2,4222.1,0.2006]
[1755819702342,4.037,4222.2,4222.1,0.2006]
[1755819702545,4.53939215,4222.2,4222.1,0.2006]
[1755819703475,0.50239215,4222.2,4222.1,0.2006]
[1755819703676,4.037,4222.2,4222.1,0.2006]
[1755819703988,4.53939215,4222.2,4222.1,0.2006]
[1755819704146,4.037,4222.2,4222.1,0.2006]
[1755819704789,4.037,4222.2,4222.1,0.004]
[1755819704993,4.53938277,4222.2,4222.1,0.004]
[1755819705172,4.5629334,4222.2,4222.1,0.2006]
[1755819706261,4.037,4222.2,4222.1,0.2006]
[1755819706888,4.3352,4222.2,4222.1,0.004]
[1755819707098,2.39244971,4222.2,4222.1,0.2006]
[1755819707299,1.822,4222.5,4222.1,0.3235]
[1755819707479,4.037,4222.4,4222.2,0.14658433]
[1755819707994,4.037,4222.4,4222.3,0.1966]
[1755819709457,4.037,4222.4,4222.3,0.3195]
[1755819710463,4.05955063,4222.4,4222.3,0.1966]
[1755819711011,0.02355063,4222.4,4222.3,0.1966]
[1755819711166,1.822,4222.5,4222.3,0.1966]
[1755819711366,4.036,4222.4,4222.3,0.1966]
[1755819711565,4.036,4222.4,4222.3,0.54861]
[1755819711966,4.036,4222.4,4222.3,0.67151]
[1755819712416,1.822,4222.5,4222.3,0.67151]
[1755819712618,1.822,4222.5,4222.4,0.02368321]
[1755819712770,5.858,4222.5,4222.4,0.3195]
[1755819713114,5.858,4222.5,4222.4,1.031751]
[1755819713316,5.858,4222.5,4222.4,0.908851]
[1755819713632,5.858,4222.5,4222.4,0.3195]
[1755819714110,5.858,4222.5,4222.4,0.908852]
[1755819714111,1.822,4222.5,4222.4,0.908852]
[1755819714309,5.858,4222.5,4222.4,0.3195]
[1755819714668,1.822,4222.5,4222.4,0.3195]
[1755819714899,5.858,4222.5,4222.4,0.1966]
[1755819716751,1.822,4222.5,4222.4,0.1966]
[1755819716924,5.857,4222.5,4222.4,0.3195]
[1755819717238,1.822,4222.5,4222.4,6.09139653]
[1755819717463,5.857,4222.5,4222.4,6.09139653]
[1755819717848,0.001,4222.6,4222.4,6.09139653]
[1755819717849,0.001,4222.6,4222.5,5.36826524]
[1755819718055,0.001,4222.6,4222.5,2.68776524]
[1755819718221,0.001,4222.6,4222.5,3.86548252]
[1755819718561,0.001,4222.6,4222.5,6.84179987]
[1755819719968,0.001,4222.6,4222.5,6.71889987]
[1755819720265,0.001,4222.6,4222.5,6.84179987]
[1755819721025,4.036,4222.6,4222.5,6.84179987]
[1755819722352,0.001,4222.6,4222.5,6.71889987]
[1755819722542,4.036,4222.6,4222.5,6.84179987]
[1755819722944,4.036,4222.6,4222.5,7.55391787]
[1755819723119,0.001,4222.6,4222.5,8.21391787]
[1755819724240,0.001,4222.6,4222.5,8.09101787]
[1755819724441,0.001,4222.6,4222.5,8.21391787]
[1755819725634,0.001,4222.6,4222.5,8.09101787]
[1755819725834,0.001,4222.6,4222.5,8.21391787]
[1755819726579,0.001,4222.6,4222.5,8.09101787]
[1755819727155,0.001,4222.6,4222.5,8.21391787]
[1755819729446,0.001,4223.1,4223.0,3.02798484]
[1755819729669,0.001,4223.1,4223.0,6.7878689]
[1755819729868,0.001,4223.1,4223.0,6.76418906]
[1755819730072,0.001,4223.1,4223.0,6.88708906]
[1755819730787,0.001,4223.1,4223.0,6.76418906]
[1755819731785,0.001,4223.1,4223.0,6.10418906]
[1755819732184,0.001,4223.1,4223.0,6.19912106]
[1755819733153,0.001,4223.1,4223.0,6.00252106]
[1755819734273,0.001,4223.1,4223.0,6.85912106]
[1755819738256,0.001,4223.1,4223.0,6.66252106]
[1755819738455,0.7389,4223.1,4223.0,6.00252106]
[1755819738688,0.7389,4223.1,4223.0,3.00252106]
[1755819739157,0.001,4223.1,4223.0,3.00252106]
[1755819739354,0.001,4223.1,4223.0,3.19912106]
[1755819739660,0.001,4223.1,4223.0,6.2228009]
[1755819739849,0.001,4223.1,4223.0,6.19912106]
[1755819740066,0.001,4223.1,4223.0,6.85912106]
[1755819746473,0.001,4223.1,4223.0,13.74140197]
[1755819747384,0.001,4223.1,4223.0,17.77240197]
[1755819751819,0.001,4223.5,4223.4,6.02776057]
[1755819751984,0.001,4223.5,4223.4,6.50731988]
[1755819752184,0.296,4223.5,4223.4,5.36776057]
[1755819752615,0.7389,4223.5,4223.4,5.46269557]
[1755819756336,0.7389,4223.5,4223.4,3.094935]
[1755819756510,2.5599,4223.5,4223.4,0.094935]
[1755819759137,3.91177315,4223.5,4223.4,0.094935]
[1755819759634,3.91177315,4223.5,4222.6,0.004]
[1755819759811,6.88228091,4222.8,4222.1,0.004]
[1755819760004,0.311,4222.2,4222.1,0.004]
[1755819760447,0.7591,4222.2,4222.1,0.004]
[1755819760604,0.7591,4222.2,4222.1,0.098978]
[1755819761926,4.7891,4222.2,4222.1,0.098978]
[1755819762151,4.03,4222.2,4222.1,3.01898784]
[1755819762447,4.03,4222.3,4222.2,2.36841894]
[1755819762610,4.03,4222.3,4222.1,0.098978]
[1755819762611,4.4781,4222.3,4222.1,0.098978]
[1755819762941,0.7591,4222.2,4222.1,0.098978]
[1755819763147,0.78265063,4222.2,4222.1,0.098978]
[1755819763451,0.7591,4222.2,4222.1,0.098978]
[1755819763646,0.78265063,4222.2,4222.1,0.098978]
[1755819764746,1.95214378,4222.2,4222.1,0.098978]
[1755819772016,7.66493154,4222.2,4222.1,0.098978]
[1755819772217,7.64138091,4222.2,4222.1,0.098978]
[1755819774226,0.311,4222.2,4222.1,0.098978]
[1755819774427,4.7901,4222.2,4222.1,0.098978]
[1755819774818,11.67238091,4222.2,4222.1,0.098978]
[1755819775356,12.839619,4222.2,4222.1,0.098978]
[1755819775928,5.95733809,4222.2,4222.1,0.098978]
[1755819776128,11.67238091,4222.2,4222.1,0.098978]
[1755819781772,11.67238091,4222.2,4222.1,0.004]
[1755819785583,11.67238091,4222.2,4222.1,0.126978]
[1755819787477,11.22428091,4222.2,4222.1,0.126978]
[1755819787687,7.33038091,4222.2,4222.1,0.126978]
[1755819787873,11.67238091,4222.2,4222.1,0.126978]
[1755819788382,12.839619,4222.2,4222.1,0.126978]
[1755819788953,1.92633809,4222.2,4222.1,0.126978]
[1755819789301,4.03,4222.2,4222.1,3.441378]
[1755819789580,4.03,4222.2,4222.1,0.441378]
[1755819789966,6.88228091,4222.5,4222.1,0.441378]
[1755819790174,6.88228091,4222.5,4222.2,3.0]
[1755819790369,4.03,4222.4,4222.1,2.49542194]
[1755819790573,6.88228091,4222.5,4222.1,0.15066289]
[1755819790772,4.03,4222.4,4222.1,0.126978]
[1755819790989,4.03,4222.4,4222.3,0.3144]
[1755819791779,0.001,4222.6,4222.3,2.68272243]
[1755819791953,4.03,4222.5,4222.4,5.36826745]
[1755819792154,4.03,4222.5,4222.4,2.68266745]
[1755819792488,0.001,4222.6,4222.4,2.68266745]
[1755819792699,4.03,4222.5,4222.4,3.3949934]
[1755819792896,0.001,4222.6,4222.5,5.36826524]
[1755819793064,4.031,4222.6,4222.5,3.3144]
[1755819794471,0.001,4222.6,4222.5,3.3144]
[1755819794671,4.031,4222.6,4222.5,5.68266524]
[1755819794992,0.001,4222.6,4222.5,5.68266524]
[1755819795193,0.001,4222.6,4222.5,6.89287088]
[1755819795194,4.031,4222.6,4222.5,6.89287088]
[1755819795570,0.001,4222.6,4222.5,6.67107088]
[1755819795797,0.001,4222.6,4222.5,6.89287088]
[1755819795973,4.031,4222.6,4222.5,6.89287088]
[1755819796864,0.001,4222.6,4222.5,6.89287088]
[1755819797369,4.03,4222.6,4222.5,6.89287088]
[1755819797777,4.03,4222.6,4222.5,4.30280564]
[1755819798003,4.03,4222.6,4222.5,3.0]
[1755819798208,4.03,4222.6,4222.4,3.08060493]
[1755819798209,11.22583154,4222.6,4222.4,0.712289]
[1755819798409,0.4722,4222.5,4222.4,0.712289]
[1755819798566,0.78575063,4222.5,4222.4,0.712289]
[1755819801914,0.7622,4222.5,4222.4,0.712289]
[1755819802223,4.03,4222.6,4222.4,0.712289]
[1755819802517,0.001,4222.6,4222.4,1.026689]
[1755819802691,0.001,4222.6,4222.5,5.61374789]
[1755819802891,4.029,4222.6,4222.5,6.80534337]
[1755819803613,4.029,4222.6,4222.5,7.51750637]
[1755819803988,4.029,4222.6,4222.5,7.29570637]
[1755819804221,4.029,4222.6,4222.5,7.51750637]
[1755819804430,0.001,4222.6,4222.5,7.51750637]
[1755819804789,4.029,4222.6,4222.5,7.51750637]
[1755819805318,0.001,4222.6,4222.5,7.52150637]
[1755819805517,4.029,4222.6,4222.5,7.52150637]
[1755819806136,4.029,4222.6,4222.5,7.29970637]
[1755819809013,4.7912,4222.6,4222.5,0.716163]
[1755819812150,6.88228091,4222.2,4221.8,0.02]
[1755819812314,0.29,4221.9,4221.8,0.02]
[1755819812519,0.31355063,4221.9,4221.8,0.02]
[1755819812721,2.70695378,4221.9,4221.8,0.02]
[1755819812931,6.73395378,4221.9,4221.8,0.02]
[1755819813126,6.71040315,4221.9,4221.8,0.02]
[1755819813651,2.68340315,4221.9,4221.8,0.02]
[1755819813848,6.73395378,4221.9,4221.8,0.02]
[1755819814153,6.71040315,4221.9,4221.8,0.02]
[1755819815071,2.68340315,4221.9,4221.8,0.02]
[1755819815281,4.81375063,4221.9,4221.8,0.02]
[1755819815487,4.7902,4221.9,4221.8,0.02]
[1755819816982,4.318,4221.9,4221.8,0.02]
[1755819817153,4.81375063,4221.9,4221.8,0.02]
[1755819817475,4.7902,4221.9,4221.8,0.02]
[1755819817781,6.70914809,4221.9,4221.8,0.02]
[1755819821406,6.70914809,4221.9,4221.6,0.004]
[1755819821708,0.66,4221.7,4220.9,0.095012]
[1755819821871,8.01743154,4221.8,4220.8,0.02]
[1755819821872,7.18198091,4221.0,4220.8,0.02]
[1755819822066,5.87455063,4220.9,4220.8,0.02]
[1755819822264,7.90795315,4220.9,4220.8,0.02]
[1755819825061,3.42835315,4220.9,4220.8,0.02]
[1755819825279,0.02,4222.8,4221.8,2.36864791]
[1755819825514,0.02,4222.8,4222.5,0.3001]
[1755819825515,0.02355063,4222.7,4222.5,0.3001]
[1755819825807,0.02355063,4222.7,4221.9,2.13450068]
[1755819825808,5.863,4222.6,4221.9,0.471]
[1755819826009,6.90583154,4222.5,4221.9,0.471]
[1755819826180,5.863,4222.6,4222.5,0.3001]
[1755819831328,1.824,4222.6,4222.5,6.7533185]
[1755819831536,4.034,4222.6,4222.5,6.7533185]
[1755819831741,4.034,4222.6,4222.5,7.4654585]
[1755819832827,4.034,4222.6,4222.5,5.09719326]
[1755819833027,4.034,4222.6,4222.5,7.4654585]
[1755819834146,4.035,4222.6,4222.5,7.4654585]
[1755819835757,4.035,4222.6,4222.5,6.9944585]
[1755819836254,4.035,4222.6,4222.5,4.62619326]
[1755819840713,4.035,4222.6,4222.5,4.32609326]
[1755819840919,4.3347,4222.6,4222.5,4.32609326]
[1755819841141,4.3347,4222.6,4222.5,3.71214]
[1755819841346,4.035,4222.6,4222.5,4.01224]
[1755819843729,4.3347,4222.6,4222.5,0.71214]
[1755819843924,0.32425063,4222.6,4222.5,0.71214]
[1755819844222,4.028,4222.6,4222.5,1.01224]
[1755819844659,4.028,4222.6,4222.5,0.71214]
[1755819844821,5.23161506,4222.6,4222.5,0.71214]
[1755819845270,5.23161506,4222.6,4221.6,0.004]
[1755819845555,0.02355063,4222.5,4221.8,3.08078145]
[1755819845760,1.822,4222.4,4221.9,3.0]
[1755819845955,0.02355063,4222.3,4221.8,0.71214]
[1755819846156,0.2997,4221.9,4221.8,0.71214]
[1755819846363,0.2997,4221.9,4221.6,0.004]
[1755819846526,4.027,4221.8,4221.6,0.004]
[1755819846728,0.2997,4221.7,4221.6,0.004]
[1755819846928,0.32325063,4221.7,4221.6,0.004]
[1755819847155,0.77485063,4221.7,4221.6,0.004]
[1755819847964,1.25503569,4221.7,4221.6,0.004]
[1755819848362,0.80343569,4221.7,4221.6,0.004]
[1755819848572,0.32325063,4221.7,4221.6,0.004]
[1755819850445,0.78055063,4221.7,4221.6,0.004]
[1755819852660,0.32325063,4221.7,4221.6,0.004]
[1755819855779,0.78055063,4221.7,4221.6,0.004]
[1755819857754,0.78055063,4221.7,4221.1,0.004]
[1755819857755,6.88509344,4221.2,4221.1,0.004]
[1755819858077,13.71470278,4221.2,4221.1,0.004]
[1755819858277,14.17200278,4221.2,4221.1,0.004]
[1755819864123,2.51150934,4221.2,4221.1,0.004]
[1755819864281,12.75964407,4221.2,4221.1,0.2908]
[1755819864608,13.48449344,4221.2,4221.1,0.004]
[1755819864976,13.02719344,4221.2,4221.1,0.004]
[1755819865181,12.73609344,4221.2,4221.1,0.004]
[1755819865625,12.73609344,4221.2,4221.1,0.2908]
[1755819865993,12.73609344,4221.2,4221.1,0.004]
[1755819865994,13.02719344,4221.2,4221.1,0.004]
[1755819866214,14.78721278,4221.2,4221.1,0.004]
[1755819869791,15.44721278,4221.2,4220.8,0.02]
[1755819870126,15.44721278,4221.2,4219.8,0.02]
[1755819870127,0.66,4221.0,4219.8,0.02]
[1755819870327,6.88509344,4219.9,4219.8,0.02]
[1755819870624,12.73609344,4219.9,4219.8,0.02]
[1755819870789,12.73609344,4219.9,4219.8,0.3068]
[1755819870993,1.823,4219.9,4219.8,0.3068]
[1755819871193,5.851,4219.9,4219.8,0.7414]
[1755819872030,5.851,4219.9,4219.8,0.3068]
[1755819873318,5.851,4219.9,4219.8,0.02]
[1755819873516,5.851,4219.9,4219.8,0.3108]
[1755819874126,5.851,4219.9,4219.8,0.024]
[1755819874532,5.851,4219.9,4219.8,0.3108]
[1755819877605,5.851,4219.9,4219.8,0.7454]
[1755819877940,12.73609344,4219.9,4219.8,0.3108]
[1755819879055,14.32550278,4219.9,4219.8,0.024]
[1755819879246,14.76810278,4219.9,4219.8,0.024]
[1755819884171,14.76810278,4219.9,4219.8,0.7911]
[1755819884172,5.851,4219.9,4219.8,0.7911]
[1755819885155,5.851,4219.9,4219.8,0.3178]
[1755819885355,5.851,4219.9,4219.8,0.7911]
[1755819885557,6.6094,4219.9,4219.8,0.024]
[1755819886340,7.11033256,4219.9,4219.8,0.024]
[1755819886586,8.50987516,4219.9,4219.8,0.024]
[1755819887666,9.16987516,4219.9,4219.8,0.024]
[1755819887858,8.50987516,4219.9,4219.8,0.024]
[1755819888367,14.6365686,4219.9,4219.8,0.3178]
[1755819888667,8.70809344,4219.9,4219.8,0.3178]
[1755819889064,12.73609344,4219.9,4219.8,0.3178]
[1755819890386,5.851,4219.9,4219.8,0.3178]
[1755819891191,6.1668,4219.9,4219.8,0.024]
[1755819891389,6.6094,4219.9,4219.8,0.024]
[1755819891564,6.82774,4219.9,4219.8,0.024]
[1755819891764,6.51194,4219.9,4219.8,0.3178]
[1755819891971,6.1668,4219.9,4219.8,0.024]
[1755819892372,6.6094,4219.9,4219.8,0.024]
[1755819892570,5.851,4219.9,4219.8,0.3178]
[1755819893256,6.1668,4219.9,4219.8,0.024]
[1755819894299,5.851,4219.9,4219.8,0.024]
[1755819895297,6.7519,4219.9,4219.8,0.024]
[1755819895515,7.1945,4219.9,4219.8,0.024]
[1755819895811,22.09297403,4219.9,4219.8,0.024]
[1755819896994,22.59453767,4219.9,4219.8,0.024]
[1755819899901,18.12393767,4219.9,4219.8,0.024]
[1755819900103,21.83613767,4219.9,4219.8,0.024]
[1755819900280,1.823,4219.9,4219.8,0.3178]
[1755819900482,1.823,4219.9,4219.8,0.7911]
[1755819900709,5.851,4219.9,4219.8,0.7911]
[1755819901105,5.851,4219.9,4219.8,0.3178]
[1755819902005,1.823,4219.9,4219.8,0.7911]
[1755819902306,1.823,4219.9,4219.8,1.17021]
[1755819902502,5.852,4219.9,4219.8,6.53999055]
[1755819902708,1.823,4219.9,4219.8,6.53999055]
[1755819902908,5.852,4219.9,4219.8,4.17021]
[1755819903232,5.852,4219.9,4219.8,3.3178]
[1755819903783,5.852,4219.9,4219.8,6.16088055]
[1755819904000,1.823,4219.9,4219.8,6.16088055]
[1755819904202,5.851,4219.9,4219.8,6.16088055]
[1755819904404,1.823,4219.9,4219.8,6.16088055]
[1755819904606,1.823,4219.9,4219.8,7.01395413]
[1755819904896,1.824,4220.5,4220.4,2.36944365]
[1755819905126,5.701,4221.6,4221.0,2.3691021]
[1755819905297,5.86,4221.5,4221.1,0.4733]
[1755819905527,0.02355063,4221.4,4221.1,0.4733]
[1755819905727,0.02355063,4221.4,4221.3,0.2938]
[1755819906044,4.035,4221.4,4221.3,3.2938]
[1755819906225,1.824,4221.5,4221.3,1.33337614]
[1755819906425,1.824,4221.5,4221.4,3.02368882]
[1755819906642,5.859,4221.5,4221.4,2.68637118]
[1755819906970,5.859,4221.5,4221.4,0.7671]
[1755819907441,1.824,4221.5,4221.4,0.7671]
[1755819907639,5.86,4221.5,4221.4,0.7671]
[1755819907825,5.86,4221.5,4221.4,0.2938]
[1755819909364,5.86,4221.5,4221.4,3.2938]
[1755819909531,5.86,4221.5,4221.4,1.00814813]
[1755819909733,5.86,4221.5,4221.4,3.7395]
[1755819910265,5.86,4221.5,4221.4,2.66268236]
[1755819910439,5.86,4221.5,4221.4,0.2938]
[1755819910837,0.001,4221.5,4221.4,0.2938]
[1755819911034,4.032,4221.5,4221.4,0.7395]
[1755819911262,4.032,4221.5,4221.4,3.74292495]
[1755819911263,0.001,4221.5,4221.4,3.74292495]
[1755819911439,0.001,4221.5,4221.4,6.74292495]
[1755819911768,0.001,4221.5,4221.4,6.71923613]
[1755819912377,0.001,4221.5,4221.4,7.37923613]
[1755819914076,0.001,4221.6,4221.5,6.02882624]
[1755819914283,0.001,4221.6,4221.5,8.11243248]
[1755819914442,1e-08,4221.8,4221.7,0.66]
[1755819914642,0.001,4222.0,4221.9,3.02860181]
[1755819914643,1e-08,4222.0,4221.9,3.02860181]
[1755819914985,1.843,4222.8,4222.5,6.02826524]
[1755819915276,0.02,4222.8,4222.5,7.53103511]
[1755819915460,0.02,4222.8,4222.7,2.36815307]
[1755819915639,0.02,4222.8,4222.7,5.66525307]
[1755819915967,0.02,4222.8,4222.7,6.11095307]
[1755819917003,0.02,4222.8,4222.5,1.91766287]
[1755819917289,6.1747,4222.7,4222.1,2.3684676]
[1755819917453,6.6261,4222.7,4222.2,3.712188]
[1755819917649,6.6261,4222.7,4221.9,2.36860127]
[1755819917995,6.6261,4222.7,4217.2,1.12717434]
[1755819917996,0.02355063,4222.6,4221.4,2.97970701]
[1755819918181,0.02355063,4222.6,4221.9,0.712249]
[1755819918492,6.3124,4222.7,4222.0,0.02368545]
[1755819918493,4.046,4222.5,4222.0,0.02368545]
[1755819918674,4.046,4222.5,4222.0,2.392188]
[1755819919057,4.046,4222.5,4222.0,0.02368545]
[1755819919256,4.046,4222.5,4222.1,2.36848892]
[1755819919582,4.046,4222.5,4222.1,0.49976788]
[1755819919884,1.823,4222.7,4222.1,0.47608299]
[1755819920053,4.06855063,4222.6,4221.7,3.0]
[1755819920486,4.06855063,4222.6,4221.7,2.36869933]
[1755819920672,4.06855063,4222.6,4221.6,0.712249]
[1755819920871,4.06855063,4222.6,4221.7,2.36870154]
[1755819921083,0.4514,4222.5,4221.8,2.3686441]
[1755819921384,0.4514,4222.5,4221.9,3.30808931]
[1755819921945,0.4514,4222.5,4221.9,0.30808931]
[1755819922150,0.4514,4222.5,4221.7,2.36867036]
[1755819922351,0.4514,4222.5,4221.7,3.0]
[1755819922566,0.4514,4222.5,4221.8,2.36865698]
[1755819922982,0.4514,4222.5,4221.9,2.36857574]
[1755819923185,4.06855063,4222.6,4221.6,1.157949]
[1755819923385,4.06855063,4222.6,4221.6,1.1280439]
[1755819923386,0.4514,4222.5,4221.6,1.1280439]
[1755819923549,0.02355063,4222.4,4221.1,2.36904158]
[1755819923754,0.4514,4222.3,4221.3,2.36890776]
[1755819923955,0.02355063,4222.2,4221.4,3.712344]
[1755819924371,0.02355063,4222.2,4221.4,2.36885758]
[1755819924585,0.4514,4222.1,4221.6,0.004]
[1755819924764,4.06555063,4222.0,4221.6,0.004]
[1755819924960,0.3137,4221.7,4221.6,0.004]
[1755819926197,0.7651,4221.7,4221.6,0.004]
[1755819931569,0.88287705,4221.7,4221.6,0.004]
[1755819931866,0.66,4221.6,4220.8,0.02]
[1755819932084,15.21217403,4220.9,4220.8,0.02]
[1755819932397,21.07317403,4220.9,4220.8,0.02]
[1755819932596,21.52457403,4220.9,4220.8,0.02]
[1755819934818,30.66,4220.8,4219.4,0.003]
[1755819934971,0.3137,4219.9,4219.4,0.003]
[1755819935171,6.19625063,4219.9,4219.4,0.003]
[1755819935438,6.6241,4219.9,4219.4,0.003]
[1755819937713,6.6251,4219.9,4219.4,0.003]
[1755819938924,2.1367,4219.9,4219.4,0.003]
[1755819939227,5.86,4219.9,4219.8,0.7932]
[1755819939407,5.86,4219.9,4219.8,0.3296]
[1755819939723,1.823,4219.9,4219.8,6.16298055]
[1755819939891,1.823,4219.9,4219.8,7.08164855]
[1755819940096,5.86,4219.9,4219.8,7.08164855]